Workbook

Sheet Stundennachweis_Abrechnung
A1: Abrechnungsnachweis kirchenmusikalischer Tätigkeiten und Stundennachweis nach Mindestlohngesetz | I1: Version 4.0 / ab Juni 2023
A3: Arbeitnehmer/in: | F3: Abrechnungszeitraum (Kalendermonat/Jahr) | I3: Hinweis: Das Formular ist am Monatsende bei der zuständigen personalverwaltenden Dienststelle einzureichen.
A5: Einstufung/ Entgeltsatz nach Entgeltstufe
A7: Arbeitgeber:
A9: Dokumentation: Arbeitszeit nach MiLoG | E9: Abrechnungsrelevante Daten | H9: Fahrtkostenzuschuss | K9: Berechnung des Entgelts
A10: Datum | B10: Beginn | C10: Ende | D10: Arbeitszeit abzüglich Pausen (in Stunden: Minuten) | E10: 1) Anlass / Gottesdienst und | F10: Tätigkeit | G10: 2) Chorproben / sonstige Tätigkeiten | H10: nur sofern im begründeten Ausnahmefall vertraglich vereinbart | K10: Vergütungs-satz | L10: Vergütungs-satz sonstige Tätigkeiten | M10: Summe
H11: Kilometer Wegstrecke KFZ | I11: Fahrtkosten-ersatz ÖPNV | J11: Hilfsspalte Fahrtkosten
J12: =ROUND(IF(AND(H12<=5,I12=""),MIN(11,I12*1),MIN(H12*0.3+I12,11)),2) -> 0 | K12: =IF(ISNA(INDEX(Datentabelle!A:O,MATCH(E12&F12,Datentabelle!A:A&Datentabelle!B:B,0),MATCH($B$5,Datentabelle!$A$1:$O$1,0))),0,INDEX(Datentabelle!A:O,MATCH(E12&F12,Datentabelle!A:A&Datentabelle!B:B,0),MATCH($B$5,Datentabelle!$A$1:$O$1,0))) -> 0 | L12: =IF(ISNA(INDEX(Datentabelle!T:AG,MATCH(Stundennachweis_Abrechnung!G12,Datentabelle!T:T,0),MATCH(Stundennachweis_Abrechnung!$B$5,Datentabelle!$T$1:$AG$1,0))),0,INDEX(Datentabelle!T:AG,MATCH(Stundennachweis_Abrechnung!G12,Datentabelle!T:T,0),MATCH(Stundennachweis_Abrechnung!$B$5,Datentabelle!$T$1:$AG$1,0))) -> 0 | M12: =ROUND(K12+IF(G12='Drop Down'!$E$14,L12*((D12-INT(D12))*24),Stundennachweis_Abrechnung!L12),2) -> 0
J13: =ROUND(IF(AND(H13<=5,I13=""),MIN(11,I13*1),MIN(H13*0.3+I13,11)),2) -> 0 | K13: =IF(ISNA(INDEX(Datentabelle!A:O,MATCH(E13&F13,Datentabelle!A:A&Datentabelle!B:B,0),MATCH($B$5,Datentabelle!$A$1:$O$1,0))),0,INDEX(Datentabelle!A:O,MATCH(E13&F13,Datentabelle!A:A&Datentabelle!B:B,0),MATCH($B$5,Datentabelle!$A$1:$O$1,0))) -> 0 | L13: =IF(ISNA(INDEX(Datentabelle!T:AG,MATCH(Stundennachweis_Abrechnung!G13,Datentabelle!T:T,0),MATCH(Stundennachweis_Abrechnung!$B$5,Datentabelle!$T$1:$AG$1,0))),0,INDEX(Datentabelle!T:AG,MATCH(Stundennachweis_Abrechnung!G13,Datentabelle!T:T,0),MATCH(Stundennachweis_Abrechnung!$B$5,Datentabelle!$T$1:$AG$1,0))) -> 0 | M13: =ROUND(K13+IF(G13='Drop Down'!$E$14,L13*((D13-INT(D13))*24),Stundennachweis_Abrechnung!L13),2) -> 0
J14: 0 | K14: =IF(ISNA(INDEX(Datentabelle!A:O,MATCH(E14&F14,Datentabelle!A:A&Datentabelle!B:B,0),MATCH($B$5,Datentabelle!$A$1:$O$1,0))),0,INDEX(Datentabelle!A:O,MATCH(E14&F14,Datentabelle!A:A&Datentabelle!B:B,0),MATCH($B$5,Datentabelle!$A$1:$O$1,0))) -> 0 | L14: =IF(ISNA(INDEX(Datentabelle!T:AG,MATCH(Stundennachweis_Abrechnung!G14,Datentabelle!T:T,0),MATCH(Stundennachweis_Abrechnung!$B$5,Datentabelle!$T$1:$AG$1,0))),0,INDEX(Datentabelle!T:AG,MATCH(Stundennachweis_Abrechnung!G14,Datentabelle!T:T,0),MATCH(Stundennachweis_Abrechnung!$B$5,Datentabelle!$T$1:$AG$1,0))) -> 0 | M14: =ROUND(K14+IF(G14='Drop Down'!$E$14,L14*((D14-INT(D14))*24),Stundennachweis_Abrechnung!L14),2) -> 0
J15: 0 | K15: =IF(ISNA(INDEX(Datentabelle!A:O,MATCH(E15&F15,Datentabelle!A:A&Datentabelle!B:B,0),MATCH($B$5,Datentabelle!$A$1:$O$1,0))),0,INDEX(Datentabelle!A:O,MATCH(E15&F15,Datentabelle!A:A&Datentabelle!B:B,0),MATCH($B$5,Datentabelle!$A$1:$O$1,0))) -> 0 | L15: =IF(ISNA(INDEX(Datentabelle!T:AG,MATCH(Stundennachweis_Abrechnung!G15,Datentabelle!T:T,0),MATCH(Stundennachweis_Abrechnung!$B$5,Datentabelle!$T$1:$AG$1,0))),0,INDEX(Datentabelle!T:AG,MATCH(Stundennachweis_Abrechnung!G15,Datentabelle!T:T,0),MATCH(Stundennachweis_Abrechnung!$B$5,Datentabelle!$T$1:$AG$1,0))) -> 0 | M15: =ROUND(K15+IF(G15='Drop Down'!$E$14,L15*((D15-INT(D15))*24),Stundennachweis_Abrechnung!L15),2) -> 0
J16: 0 | K16: =IF(ISNA(INDEX(Datentabelle!A:O,MATCH(E16&F16,Datentabelle!A:A&Datentabelle!B:B,0),MATCH($B$5,Datentabelle!$A$1:$O$1,0))),0,INDEX(Datentabelle!A:O,MATCH(E16&F16,Datentabelle!A:A&Datentabelle!B:B,0),MATCH($B$5,Datentabelle!$A$1:$O$1,0))) -> 0 | L16: =IF(ISNA(INDEX(Datentabelle!T:AG,MATCH(Stundennachweis_Abrechnung!G16,Datentabelle!T:T,0),MATCH(Stundennachweis_Abrechnung!$B$5,Datentabelle!$T$1:$AG$1,0))),0,INDEX(Datentabelle!T:AG,MATCH(Stundennachweis_Abrechnung!G16,Datentabelle!T:T,0),MATCH(Stundennachweis_Abrechnung!$B$5,Datentabelle!$T$1:$AG$1,0))) -> 0 | M16: =ROUND(K16+IF(G16='Drop Down'!$E$14,L16*((D16-INT(D16))*24),Stundennachweis_Abrechnung!L16),2) -> 0
J17: 0 | K17: =IF(ISNA(INDEX(Datentabelle!A:O,MATCH(E17&F17,Datentabelle!A:A&Datentabelle!B:B,0),MATCH($B$5,Datentabelle!$A$1:$O$1,0))),0,INDEX(Datentabelle!A:O,MATCH(E17&F17,Datentabelle!A:A&Datentabelle!B:B,0),MATCH($B$5,Datentabelle!$A$1:$O$1,0))) -> 0 | L17: =IF(ISNA(INDEX(Datentabelle!T:AG,MATCH(Stundennachweis_Abrechnung!G17,Datentabelle!T:T,0),MATCH(Stundennachweis_Abrechnung!$B$5,Datentabelle!$T$1:$AG$1,0))),0,INDEX(Datentabelle!T:AG,MATCH(Stundennachweis_Abrechnung!G17,Datentabelle!T:T,0),MATCH(Stundennachweis_Abrechnung!$B$5,Datentabelle!$T$1:$AG$1,0))) -> 0 | M17: =ROUND(K17+IF(G17='Drop Down'!$E$14,L17*((D17-INT(D17))*24),Stundennachweis_Abrechnung!L17),2) -> 0
J18: 0 | K18: =IF(ISNA(INDEX(Datentabelle!A:O,MATCH(E18&F18,Datentabelle!A:A&Datentabelle!B:B,0),MATCH($B$5,Datentabelle!$A$1:$O$1,0))),0,INDEX(Datentabelle!A:O,MATCH(E18&F18,Datentabelle!A:A&Datentabelle!B:B,0),MATCH($B$5,Datentabelle!$A$1:$O$1,0))) -> 0 | L18: =IF(ISNA(INDEX(Datentabelle!T:AG,MATCH(Stundennachweis_Abrechnung!G18,Datentabelle!T:T,0),MATCH(Stundennachweis_Abrechnung!$B$5,Datentabelle!$T$1:$AG$1,0))),0,INDEX(Datentabelle!T:AG,MATCH(Stundennachweis_Abrechnung!G18,Datentabelle!T:T,0),MATCH(Stundennachweis_Abrechnung!$B$5,Datentabelle!$T$1:$AG$1,0))) -> 0 | M18: =ROUND(K18+IF(G18='Drop Down'!$E$14,L18*((D18-INT(D18))*24),Stundennachweis_Abrechnung!L18),2) -> 0
J19: 0 | K19: =IF(ISNA(INDEX(Datentabelle!A:O,MATCH(E19&F19,Datentabelle!A:A&Datentabelle!B:B,0),MATCH($B$5,Datentabelle!$A$1:$O$1,0))),0,INDEX(Datentabelle!A:O,MATCH(E19&F19,Datentabelle!A:A&Datentabelle!B:B,0),MATCH($B$5,Datentabelle!$A$1:$O$1,0))) -> 0 | L19: =IF(ISNA(INDEX(Datentabelle!T:AG,MATCH(Stundennachweis_Abrechnung!G19,Datentabelle!T:T,0),MATCH(Stundennachweis_Abrechnung!$B$5,Datentabelle!$T$1:$AG$1,0))),0,INDEX(Datentabelle!T:AG,MATCH(Stundennachweis_Abrechnung!G19,Datentabelle!T:T,0),MATCH(Stundennachweis_Abrechnung!$B$5,Datentabelle!$T$1:$AG$1,0))) -> 0 | M19: =ROUND(K19+IF(G19='Drop Down'!$E$14,L19*((D19-INT(D19))*24),Stundennachweis_Abrechnung!L19),2) -> 0
J20: 0 | K20: =IF(ISNA(INDEX(Datentabelle!A:O,MATCH(E20&F20,Datentabelle!A:A&Datentabelle!B:B,0),MATCH($B$5,Datentabelle!$A$1:$O$1,0))),0,INDEX(Datentabelle!A:O,MATCH(E20&F20,Datentabelle!A:A&Datentabelle!B:B,0),MATCH($B$5,Datentabelle!$A$1:$O$1,0))) -> 0 | L20: =IF(ISNA(INDEX(Datentabelle!T:AG,MATCH(Stundennachweis_Abrechnung!G20,Datentabelle!T:T,0),MATCH(Stundennachweis_Abrechnung!$B$5,Datentabelle!$T$1:$AG$1,0))),0,INDEX(Datentabelle!T:AG,MATCH(Stundennachweis_Abrechnung!G20,Datentabelle!T:T,0),MATCH(Stundennachweis_Abrechnung!$B$5,Datentabelle!$T$1:$AG$1,0))) -> 0 | M20: =ROUND(K20+IF(G20='Drop Down'!$E$14,L20*((D20-INT(D20))*24),Stundennachweis_Abrechnung!L20),2) -> 0
J21: 0 | K21: =IF(ISNA(INDEX(Datentabelle!A:O,MATCH(E21&F21,Datentabelle!A:A&Datentabelle!B:B,0),MATCH($B$5,Datentabelle!$A$1:$O$1,0))),0,INDEX(Datentabelle!A:O,MATCH(E21&F21,Datentabelle!A:A&Datentabelle!B:B,0),MATCH($B$5,Datentabelle!$A$1:$O$1,0))) -> 0 | L21: =IF(ISNA(INDEX(Datentabelle!T:AG,MATCH(Stundennachweis_Abrechnung!G21,Datentabelle!T:T,0),MATCH(Stundennachweis_Abrechnung!$B$5,Datentabelle!$T$1:$AG$1,0))),0,INDEX(Datentabelle!T:AG,MATCH(Stundennachweis_Abrechnung!G21,Datentabelle!T:T,0),MATCH(Stundennachweis_Abrechnung!$B$5,Datentabelle!$T$1:$AG$1,0))) -> 0 | M21: =ROUND(K21+IF(G21='Drop Down'!$E$14,L21*((D21-INT(D21))*24),Stundennachweis_Abrechnung!L21),2) -> 0
J22: 0 | K22: =IF(ISNA(INDEX(Datentabelle!A:O,MATCH(E22&F22,Datentabelle!A:A&Datentabelle!B:B,0),MATCH($B$5,Datentabelle!$A$1:$O$1,0))),0,INDEX(Datentabelle!A:O,MATCH(E22&F22,Datentabelle!A:A&Datentabelle!B:B,0),MATCH($B$5,Datentabelle!$A$1:$O$1,0))) -> 0 | L22: =IF(ISNA(INDEX(Datentabelle!T:AG,MATCH(Stundennachweis_Abrechnung!G22,Datentabelle!T:T,0),MATCH(Stundennachweis_Abrechnung!$B$5,Datentabelle!$T$1:$AG$1,0))),0,INDEX(Datentabelle!T:AG,MATCH(Stundennachweis_Abrechnung!G22,Datentabelle!T:T,0),MATCH(Stundennachweis_Abrechnung!$B$5,Datentabelle!$T$1:$AG$1,0))) -> 0 | M22: =ROUND(K22+IF(G22='Drop Down'!$E$14,L22*((D22-INT(D22))*24),Stundennachweis_Abrechnung!L22),2) -> 0
G23: Summe Fahrtkostenzuschuss: | H23: =SUM(J12:J22) -> 0 | K23: Summe Entgelt: | M23: =SUM(M12:M22) -> 0
A27: Datum | D27: Unterschrift Kirchenmusiker/-in | G27: Datum | I27: Unterschrift Sachbearbeiter/-in
A31: Datum | D31: Unterschrift Anordnungsberechtigte/-r

Sheet Datentabelle (hidden)
A1: Anlass Gottesdienst | B1: Tätigkeit | C1: DE | D1: A | E1: B+50% (Besitzstand gem. § 16 Abs. 2 Anlage 4f zur AVO) | F1: B | G1: 90%B | H1: C+50% (Besitzstand gem. § 16 Abs. 2 Anlage 4f zur AVO) | I1: 80%B | J1: C | K1: D+50% (Besitzstand gem. § 16 Abs. 2 Anlage 4f zur AVO) | L1: 95%C | M1: D | N1: B (Besitzstand gem. § 16 Abs. 1 Anlage 4f zur AVO) | O1: 90%B (Besitzstand nach § 16 Abs. 2 Anlage 4f zur AVO) | T1: sonstige Tätigkeit | U1: Diensteinheiten | V1: A | W1: B+50% (Besitzstand gem. § 16 Abs. 2 Anlage 4f zur AVO) | X1: B | Y1: 90%B | Z1: C+50% (Besitzstand gem. § 16 Abs. 2 Anlage 4f zur AVO) | AA1: 80%B | AB1: C | AC1: D+50% (Besitzstand gem. § 16 Abs. 2 Anlage 4f zur AVO) | AD1: 95%C | AE1: D | AF1: B (Besitzstand gem. § 16 Abs. 1 Anlage 4f zur AVO) | AG1: 90%B (Besitzstand nach § 16 Abs. 2 Anlage 4f zur AVO)
A2: Gottesdienste an Sonntagen (einschl. Vorabend) und Feiertagen | B2: Orgelspiel | C2: 1 | D2: 60.65 € | E2: =ROUND(F2+(D2-F2)*0.5,2) -> 55.74 € | F2: 50.83 € | G2: =ROUND(0.9*F2,2) -> 45.75 € | H2: =ROUND(J2+(F2-J2)*0.5,2) -> 44.44 € | I2: =ROUND(0.8*F2,2) -> 40.66 € | J2: 38.05 € | K2: =ROUND(M2+(J2-M2)*0.5,2) -> 36.67 € | L2: =ROUND(0.95*J2,2) -> 36.15 € | M2: 35.28 € | N2: 50.830 € | O2: =ROUND(0.9*N2,2) -> 45.750 € | T2: Chorprobe/Ensembleprobe bis einschl. 60 min | U2: 1 | V2: 60.650 € | W2: =ROUND(X2+(V2-X2)*0.5,2) -> 55.740 € | X2: 50.830 € | Y2: =ROUND(0.9*X2,2) -> 45.750 € | Z2: =ROUND(AB2+(X2-AB2)*0.5,2) -> 44.440 € | AA2: =ROUND(0.8*X2,2) -> 40.660 € | AB2: 38.050 € | AC2: =ROUND(AE2+(AB2-AE2)*0.5,2) -> 36.670 € | AD2: =ROUND(0.95*AB2,2) -> 36.150 € | AE2: 35.280 € | AF2: 50.830 € | AG2: =ROUND(0.9*AF2,2) -> 45.750 €
A3: Gottesdienste an Sonntagen (einschl. Vorabend) und Feiertagen | B3: Chorleitung (mit Einsingen) | C3: 1.5 | D3: 90.98 € | E3: =ROUND(F3+(D3-F3)*0.5,2) -> 83.62 € | F3: 76.25 € | G3: =ROUND(0.9*F3,2) -> 68.63 € | H3: =ROUND(J3+(F3-J3)*0.5,2) -> 66.67 € | I3: =ROUND(0.8*F3,2) -> 61.00 € | J3: 57.08 € | K3: =ROUND(M3+(J3-M3)*0.5,2) -> 55.01 € | L3: =ROUND(0.95*J3,2) -> 54.23 € | M3: 52.93 € | N3: 76.250 € | O3: =ROUND(0.9*N3,2) -> 68.630 € | T3: Chorprobe/Ensembleprobe bis einschl. 90 min | U3: 1.5 | V3: 90.980 € | W3: 83.620 € | X3: 76.250 € | Y3: 68.630 € | Z3: 66.670 € | AA3: 61.000 € | AB3: 57.080 € | AC3: 55.010 € | AD3: =ROUND(0.95*AB3,2) -> 54.230 € | AE3: 52.930 € | AF3: 76.250 € | AG3: =ROUND(0.9*AF3,2) -> 68.630 €
A4: Gottesdienste an Sonntagen (einschl. Vorabend) und Feiertagen | B4: Orgelspiel und Chorleitung (mit Einsingen) | C4: 1.5 | D4: 90.98 € | E4: 83.62 € | F4: 76.25 € | G4: 68.63 € | H4: 66.67 € | I4: 61.00 € | J4: 57.08 € | K4: 55.01 € | L4: 54.23 € | M4: 52.93 € | N4: 76.250 € | O4: =ROUND(0.9*N4,2) -> 68.630 € | T4: Chorprobe/Ensembleprobe bis einschl. 120 min | U4: 2 | V4: 121.300 € | W4: 111.490 € | X4: 101.670 € | Y4: 91.500 € | Z4: 88.890 € | AA4: 81.340 € | AB4: 76.100 € | AC4: 73.340 € | AD4: 72.300 € | AE4: 70.570 € | AF4: 101.670 € | AG4: 91.500 €
A5: Werktagsgottesdienst | B5: Orgelspiel | C5: 1 | D5: 60.65 € | E5: 55.74 € | F5: 50.83 € | G5: 45.75 € | H5: 44.44 € | I5: 40.66 € | J5: 38.05 € | K5: 36.67 € | L5: 36.15 € | M5: 35.28 € | N5: 50.830 € | O5: 45.750 € | T5: Chorprobe mit Kinder- und Jugendchor bis einschl. 60 min | U5: 1 | V5: 60.650 € | W5: 55.740 € | X5: 50.830 € | Y5: 45.750 € | Z5: 44.440 € | AA5: 40.660 € | AB5: 38.050 € | AC5: 36.670 € | AD5: 36.150 € | AE5: 35.280 € | AF5: 50.830 € | AG5: 45.750 €
A6: Werktagsgottesdienst | B6: Chorleitung (mit Einsingen) | C6: 1.5 | D6: 90.98 € | E6: =ROUND(F6+(D6-F6)*0.5,2) -> 83.62 € | F6: 76.25 € | G6: 68.63 € | H6: 66.67 € | I6: 61.00 € | J6: 57.08 € | K6: 55.01 € | L6: 54.23 € | M6: 52.93 € | N6: 50.830 € | O6: 45.750 € | T6: Chorprobe mit Kinder- und Jugendchor bis einschl. 90 min | U6: 1.5 | V6: 90.980 € | W6: 83.620 € | X6: 76.250 € | Y6: 68.630 € | Z6: 66.670 € | AA6: 61.000 € | AB6: 57.080 € | AC6: 55.010 € | AD6: 54.230 € | AE6: 52.930 € | AF6: 76.250 € | AG6: 68.630 €
A7: Werktagsgottesdienst | B7: Orgelspiel und Chorleitung (mit Einsingen) | C7: 1.5 | D7: 90.98 € | E7: =ROUND(F7+(D7-F7)*0.5,2) -> 83.62 € | F7: 76.25 € | G7: 68.63 € | H7: 66.67 € | I7: 61.00 € | J7: 57.08 € | K7: 55.01 € | L7: 54.23 € | M7: 52.93 € | N7: 50.830 € | O7: 45.750 € | T7: Prozession mit Chorgesang bis einschl. 60 min | U7: 1 | V7: 60.650 € | W7: 55.740 € | X7: 50.830 € | Y7: 45.750 € | Z7: 44.440 € | AA7: 40.660 € | AB7: 38.050 € | AC7: 36.670 € | AD7: 36.150 € | AE7: 35.280 € | AF7: 50.830 € | AG7: 45.750 €
A8: Christmette | B8: Orgelspiel | C8: 2 | D8: 121.30 € | E8: 111.49 € | F8: 101.67 € | G8: 91.50 € | H8: 88.89 € | I8: 81.34 € | J8: 76.10 € | K8: 73.34 € | L8: 72.30 € | M8: 70.57 € | N8: 101.670 € | O8: 91.500 € | T8: Prozession mit Chorgesang bis einschl. 90 min | U8: 1.5 | V8: 90.980 € | W8: 83.620 € | X8: 76.250 € | Y8: 68.630 € | Z8: 66.670 € | AA8: 61.000 € | AB8: 57.080 € | AC8: 55.010 € | AD8: 54.230 € | AE8: 52.930 € | AF8: 76.250 € | AG8: 68.630 €
A9: Christmette | B9: Chorleitung (mit Einsingen) | C9: 2.5 | D9: 151.63 € | E9: 139.36 € | F9: 127.08 € | G9: 114.37 € | H9: 111.11 € | I9: 101.66 € | J9: 95.13 € | K9: 91.67 € | L9: 90.37 € | M9: 88.21 € | N9: 101.670 € | O9: 91.500 € | T9: Unterricht bis einschl. 30 min | U9: 0.5 | V9: 30.330 € | W9: 27.880 € | X9: 25.420 € | Y9: 22.880 € | Z9: 22.230 € | AA9: 20.340 € | AB9: 19.030 € | AC9: 18.340 € | AD9: 18.080 € | AE9: 17.640 € | AF9: 25.420 € | AG9: 22.880 €
A10: Christmette | B10: Orgelspiel und Chorleitung (mit Einsingen) | C10: 2.5 | D10: 151.63 € | E10: 139.36 € | F10: 127.08 € | G10: 114.37 € | H10: 111.11 € | I10: 101.66 € | J10: 95.13 € | K10: 91.67 € | L10: 90.37 € | M10: 88.21 € | N10: 101.670 € | O10: 91.500 € | T10: Unterricht bis einschl. 60 min | U10: 1 | V10: 60.650 € | W10: 55.740 € | X10: 50.830 € | Y10: 45.750 € | Z10: 44.440 € | AA10: 40.660 € | AB10: 38.050 € | AC10: 36.670 € | AD10: 36.150 € | AE10: 35.280 € | AF10: 50.830 € | AG10: 45.750 €
A11: Kinderchristmette | B11: Orgelspiel | C11: 1 | D11: 60.65 € | E11: 55.74 € | F11: 50.83 € | G11: 45.75 € | H11: 44.44 € | I11: 40.66 € | J11: 38.05 € | K11: 36.67 € | L11: 36.15 € | M11: 35.28 € | N11: 101.670 € | O11: 91.500 € | T11: Konzertdauer bis einschl. 60 Minuten + Einsingen/Einspielen | U11: 1.5 | V11: 90.980 € | W11: 83.620 € | X11: 76.250 € | Y11: 68.630 € | Z11: 66.670 € | AA11: 61.000 € | AB11: 57.080 € | AC11: 55.010 € | AD11: 54.230 € | AE11: 52.930 € | AF11: 76.250 € | AG11: 68.630 €
A12: Kinderchristmette | B12: Chorleitung (mit Einsingen) | C12: 1.5 | D12: 90.98 € | E12: 83.62 € | F12: 76.25 € | G12: 68.63 € | H12: 66.67 € | I12: 61.00 € | J12: 57.08 € | K12: 55.01 € | L12: 54.23 € | M12: 52.93 € | N12: 76.250 € | O12: 68.630 € | T12: Konzertdauer bis einschl. 90 Minuten + Einsingen/Einspielen | U12: 2 | V12: 121.300 € | W12: 111.490 € | X12: 101.670 € | Y12: 91.500 € | Z12: 88.890 € | AA12: 81.340 € | AB12: 76.100 € | AC12: 73.340 € | AD12: 72.300 € | AE12: 70.570 € | AF12: 101.670 € | AG12: 91.500 €
A13: Kinderchristmette | B13: Orgelspiel und Chorleitung (mit Einsingen) | C13: 1.5 | D13: 90.98 € | E13: 83.62 € | F13: 76.25 € | G13: 68.63 € | H13: 66.67 € | I13: 61.00 € | J13: 57.08 € | K13: 55.01 € | L13: 54.23 € | M13: 52.93 € | N13: 76.250 € | O13: 68.630 € | T13: Konzertdauer über 90 Minuten + Einsingen/Einspielen | U13: 2.5 | V13: 151.630 € | W13: 139.360 € | X13: 127.080 € | Y13: 114.370 € | Z13: 111.110 € | AA13: 101.660 € | AB13: 95.130 € | AC13: 91.670 € | AD13: 90.370 € | AE13: 88.210 € | AF13: 127.080 € | AG13: 114.370 €
A14: Gottesdienst in der Osternacht | B14: Orgelspiel | C14: 2 | D14: 121.30 € | E14: 111.49 € | F14: 101.67 € | G14: 91.50 € | H14: 88.89 € | I14: 81.34 € | J14: 76.10 € | K14: 73.34 € | L14: 72.30 € | M14: 70.57 € | N14: 101.670 € | O14: 91.500 € | T14: ='Drop Down'!E14 -> Sonstige vereinbarte Tätigkeit gem. § 12 Abs. 3 Anlage 4f zur AVO | V14: 36.390 € | W14: 33.450 € | X14: 30.500 € | Y14: 27.450 € | Z14: 26.670 € | AA14: 24.400 € | AB14: 22.830 € | AC14: 22.000 € | AD14: 21.690 € | AE14: 21.170 € | AF14: 30.500 € | AG14: 27.450 €
A15: Gottesdienst in der Osternacht | B15: Chorleitung (mit Einsingen) | C15: 2.5 | D15: 151.63 € | E15: 139.36 € | F15: 127.08 € | G15: 114.37 € | H15: 111.11 € | I15: 101.66 € | J15: 95.13 € | K15: 91.67 € | L15: 90.37 € | M15: 88.21 € | N15: 101.670 € | O15: 91.500 €
A16: Gottesdienst in der Osternacht | B16: Orgelspiel und Chorleitung (mit Einsingen) | C16: 2.5 | D16: 151.63 € | E16: 139.36 € | F16: 127.08 € | G16: 114.37 € | H16: 111.11 € | I16: 101.66 € | J16: 95.13 € | K16: 91.67 € | L16: 90.37 € | M16: 88.21 € | N16: 101.670 € | O16: 91.500 €
A17: Gottesdienst am Gründonnerstag | B17: Orgelspiel | C17: 1 | D17: 60.65 € | E17: 55.74 € | F17: 50.83 € | G17: 45.75 € | H17: 44.44 € | I17: 40.66 € | J17: 38.05 € | K17: 36.67 € | L17: 36.15 € | M17: 35.28 € | N17: 101.670 € | O17: 91.500 €
A18: Gottesdienst am Gründonnerstag | B18: Chorleitung (mit Einsingen) | C18: 1.5 | D18: 90.98 € | E18: 83.62 € | F18: 76.25 € | G18: 68.63 € | H18: 66.67 € | I18: 61.00 € | J18: 57.08 € | K18: 55.01 € | L18: 54.23 € | M18: 52.93 € | N18: 76.250 € | O18: 68.630 €
A19: Gottesdienst am Gründonnerstag | B19: Orgelspiel und Chorleitung (mit Einsingen) | C19: 1.5 | D19: 90.98 € | E19: 83.62 € | F19: 76.25 € | G19: 68.63 € | H19: 66.67 € | I19: 61.00 € | J19: 57.08 € | K19: 55.01 € | L19: 54.23 € | M19: 52.93 € | N19: 76.250 € | O19: 68.630 €
A20: Karfreitagsliturgie | B20: Orgelspiel | C20: 1.5 | D20: 90.98 € | E20: 83.62 € | F20: 76.25 € | G20: 68.63 € | H20: 66.67 € | I20: 61.00 € | J20: 57.08 € | K20: 55.01 € | L20: 54.23 € | M20: 52.93 € | N20: 76.250 € | O20: 68.630 €
A21: Karfreitagsliturgie | B21: Chorleitung (mit Einsingen) | C21: 2 | D21: 121.30 € | E21: 111.49 € | F21: 101.67 € | G21: 91.50 € | H21: 88.89 € | I21: 81.34 € | J21: 76.10 € | K21: 73.34 € | L21: 72.30 € | M21: 70.57 € | N21: 76.250 € | O21: 68.630 €
A22: Karfreitagsliturgie | B22: Orgelspiel und Chorleitung (mit Einsingen) | C22: 2 | D22: 121.30 € | E22: 111.49 € | F22: 101.67 € | G22: 91.50 € | H22: 88.89 € | I22: 81.34 € | J22: 76.10 € | K22: 73.34 € | L22: 72.30 € | M22: 70.57 € | N22: 76.250 € | O22: 68.630 €
A23: Erstkommunionsfeiern | B23: Orgelspiel | C23: 1.5 | D23: 90.98 € | E23: 83.62 € | F23: 76.25 € | G23: 68.63 € | H23: 66.67 € | I23: 61.00 € | J23: 57.08 € | K23: 55.01 € | L23: 54.23 € | M23: 52.93 € | N23: 76.250 € | O23: 68.630 €
A24: Erstkommunionsfeiern | B24: Chorleitung (mit Einsingen) | C24: 2 | D24: 121.30 € | E24: 111.49 € | F24: 101.67 € | G24: 91.50 € | H24: 88.89 € | I24: 81.34 € | J24: 76.10 € | K24: 73.34 € | L24: 72.30 € | M24: 70.57 € | N24: 76.250 € | O24: 68.630 €
A25: Erstkommunionsfeiern | B25: Orgelspiel und Chorleitung (mit Einsingen) | C25: 2 | D25: 121.30 € | E25: 111.49 € | F25: 101.67 € | G25: 91.50 € | H25: 88.89 € | I25: 81.34 € | J25: 76.10 € | K25: 73.34 € | L25: 72.30 € | M25: 70.57 € | N25: 101.670 € | O25: 91.500 €
A26: Firmungen | B26: Orgelspiel | C26: 2 | D26: 121.30 € | E26: 111.49 € | F26: 101.67 € | G26: 91.50 € | H26: 88.89 € | I26: 81.34 € | J26: 76.10 € | K26: 73.34 € | L26: 72.30 € | M26: 70.57 € | N26: 101.670 € | O26: 91.500 €
A27: Firmungen | B27: Chorleitung (mit Einsingen) | C27: 2.5 | D27: 151.63 € | E27: 139.36 € | F27: 127.08 € | G27: 114.37 € | H27: 111.11 € | I27: 101.66 € | J27: 95.13 € | K27: 91.67 € | L27: 90.37 € | M27: 88.21 € | N27: 127.080 € | O27: 114.370 €
A28: Firmungen | B28: Orgelspiel und Chorleitung (mit Einsingen) | C28: 2.5 | D28: 151.63 € | E28: 139.36 € | F28: 127.08 € | G28: 114.37 € | H28: 111.11 € | I28: 101.66 € | J28: 95.13 € | K28: 91.67 € | L28: 90.37 € | M28: 88.21 € | N28: 127.080 € | O28: 114.370 €
A29: Tauffeiern | B29: Orgelspiel | C29: 1 | D29: 60.65 € | E29: 55.74 € | F29: 50.83 € | G29: 45.75 € | H29: 44.44 € | I29: 40.66 € | J29: 38.05 € | K29: 36.67 € | L29: 36.15 € | M29: 35.28 € | N29: 127.080 € | O29: 114.370 €
A30: Tauffeiern | B30: Chorleitung (mit Einsingen) | C30: 1.5 | D30: 90.98 € | E30: 83.62 € | F30: 76.25 € | G30: 68.63 € | H30: 66.67 € | I30: 61.00 € | J30: 57.08 € | K30: 55.01 € | L30: 54.23 € | M30: 52.93 € | N30: 76.250 € | O30: 68.630 €
A31: Tauffeiern | B31: Orgelspiel und Chorleitung (mit Einsingen) | C31: 1.5 | D31: 90.98 € | E31: 83.62 € | F31: 76.25 € | G31: 68.63 € | H31: 66.67 € | I31: 61.00 € | J31: 57.08 € | K31: 55.01 € | L31: 54.23 € | M31: 52.93 € | N31: 76.250 € | O31: 68.630 €
A32: Trauungen | B32: Orgelspiel | C32: 1 | D32: 60.65 € | E32: 55.74 € | F32: 50.83 € | G32: 45.75 € | H32: 44.44 € | I32: 40.66 € | J32: 38.05 € | K32: 36.67 € | L32: 36.15 € | M32: 35.28 € | N32: 50.830 € | O32: 45.750 €
A33: Trauungen | B33: Chorleitung (mit Einsingen) | C33: 1.5 | D33: 90.98 € | E33: 83.62 € | F33: 76.25 € | G33: 68.63 € | H33: 66.67 € | I33: 61.00 € | J33: 57.08 € | K33: 55.01 € | L33: 54.23 € | M33: 52.93 € | N33: 76.250 € | O33: 68.630 €
A34: Trauungen | B34: Orgelspiel und Chorleitung (mit Einsingen) | C34: 1.5 | D34: 90.98 € | E34: 83.62 € | F34: 76.25 € | G34: 68.63 € | H34: 66.67 € | I34: 61.00 € | J34: 57.08 € | K34: 55.01 € | L34: 54.23 € | M34: 52.93 € | N34: 76.250 € | O34: 68.630 €
A35: Seelenamt + Aussegnung bzw. Trauerfeier + Aussegnung | B35: Orgelspiel | C35: 1 | D35: 60.65 € | E35: 55.74 € | F35: 50.83 € | G35: 45.75 € | H35: 44.44 € | I35: 40.66 € | J35: 38.05 € | K35: 36.67 € | L35: 36.15 € | M35: 35.28 € | N35: 50.830 € | O35: 45.750 €
A36: Seelenamt + Aussegnung bzw. Trauerfeier + Aussegnung | B36: Chorleitung (mit Einsingen) | C36: 1.5 | D36: 90.98 € | E36: 83.62 € | F36: 76.25 € | G36: 68.63 € | H36: 66.67 € | I36: 61.00 € | J36: 57.08 € | K36: 55.01 € | L36: 54.23 € | M36: 52.93 € | N36: 76.250 € | O36: 68.630 €
A37: Seelenamt + Aussegnung bzw. Trauerfeier + Aussegnung | B37: Orgelspiel und Chorleitung (mit Einsingen) | C37: 1.5 | D37: 90.98 € | E37: 83.62 € | F37: 76.25 € | G37: 68.63 € | H37: 66.67 € | I37: 61.00 € | J37: 57.08 € | K37: 55.01 € | L37: 54.23 € | M37: 52.93 € | N37: 76.250 € | O37: 68.630 €
A38: Andachten (bis einschl. 30min) | B38: Orgelspiel | C38: 0.5 | D38: 30.33 € | E38: 27.88 € | F38: 25.42 € | G38: 22.88 € | H38: 22.23 € | I38: 20.34 € | J38: 19.03 € | K38: 18.34 € | L38: 18.08 € | M38: 17.64 € | N38: 25.420 € | O38: =ROUND(0.9*N38,2) -> 22.880 €
A39: Andachten (bis einschl. 30min) | B39: Chorleitung (mit Einsingen) | C39: 1 | D39: 60.65 € | E39: 55.74 € | F39: 50.83 € | G39: 45.75 € | H39: 44.44 € | I39: 40.66 € | J39: 38.05 € | K39: 36.67 € | L39: 36.15 € | M39: 35.28 € | N39: 50.830 € | O39: 45.750 €
A40: Andachten (bis einschl. 30min) | B40: Orgelspiel und Chorleitung (mit Einsingen) | C40: 1 | D40: 60.65 € | E40: 55.74 € | F40: 50.83 € | G40: 45.75 € | H40: 44.44 € | I40: 40.66 € | J40: 38.05 € | K40: 36.67 € | L40: 36.15 € | M40: 35.28 € | N40: 50.830 € | O40: 45.750 €
A41: Andachten (bis einschl. 60min) | B41: Orgelspiel | C41: 1 | D41: 60.65 € | E41: 55.74 € | F41: 50.83 € | G41: 45.75 € | H41: 44.44 € | I41: 40.66 € | J41: 38.05 € | K41: 36.67 € | L41: 36.15 € | M41: 35.28 € | N41: 50.830 € | O41: 45.750 €
A42: Andachten (bis einschl. 60min) | B42: Chorleitung (mit Einsingen) | C42: 1.5 | D42: 90.98 € | E42: 83.62 € | F42: 76.25 € | G42: 68.63 € | H42: 66.67 € | I42: 61.00 € | J42: 57.08 € | K42: 55.01 € | L42: 54.23 € | M42: 52.93 € | N42: 76.250 € | O42: 68.630 €
A43: Andachten (bis einschl. 60min) | B43: Orgelspiel und Chorleitung (mit Einsingen) | C43: 1.5 | D43: 90.98 € | E43: 83.62 € | F43: 76.25 € | G43: 68.63 € | H43: 66.67 € | I43: 61.00 € | J43: 57.08 € | K43: 55.01 € | L43: 54.23 € | M43: 52.93 € | N43: 76.250 € | O43: 68.630 €

Sheet Drop Down (hidden)
A1: Gottesdienst | C1: Tätigkeiten | E1: sonstige Tätigkeiten | G1: Qualifikation | I1: Arbeitgeber | K1: Auftraggeber | M1: GKG | O1: Fonds
A2: Gottesdienste an Sonntagen (einschl. Vorabend) und Feiertagen | C2: Orgelspiel | E2: Chorprobe/Ensembleprobe bis einschl. 60 min | G2: A | I2: Aachtal | K2: Römisch-katholische Kirchengemeinde | M2: Baden-Baden | O2: Lindenberg
A3: Werktagsgottesdienst | C3: Chorleitung (mit Einsingen) | E3: Chorprobe/Ensembleprobe bis einschl. 90 min | G3: B | I3: Achern | K3: Katholische Gesamtkirchengemeinde | M3: Freiburg
A4: Christmette | C4: Orgelspiel und Chorleitung (mit Einsingen) | E4: Chorprobe/Ensembleprobe bis einschl. 120 min | G4: 90%B | I4: Achertal St. Nikolaus | K4: Erzdiözese Freiburg | M4: Karlsruhe
A5: Kinderchristmette | E5: Chorprobe mit Kinder- und Jugendchor bis einschl. 60 min | G5: 80%B | I5: Adelsheim-Osterburken-Seckach | K5: Kapellenfond | M5: Konstanz
A6: Gottesdienst in der Osternacht | E6: Chorprobe mit Kinder- und Jugendchor bis einschl. 90 min | G6: C | I6: Aglasterhausen-Neunkirchen | M6: Mannheim
A7: Gottesdienst am Gründonnerstag | E7: Prozession mit Chorgesang bis einschl. 60 min | G7: 95%C | I7: Am Litzelberg
A8: Karfreitagsliturgie | E8: Prozession mit Chorgesang bis einschl. 90 min | G8: D | I8: An der Eschach
A9: Erstkommunionsfeiern | E9: Unterricht bis einschl. 30 min | G9: B+50% (Besitzstand gem. § 16 Abs. 2 Anlage 4f zur AVO) | I9: An der Glotter
A10: Firmungen | E10: Unterricht bis einschl. 60 min | G10: C+50% (Besitzstand gem. § 16 Abs. 2 Anlage 4f zur AVO) | I10: An der Schutter
A11: Tauffeiern | E11: Konzertdauer bis einschl. 60 Minuten + Einsingen/Einspielen | G11: D+50% (Besitzstand gem. § 16 Abs. 2 Anlage 4f zur AVO) | I11: An Wolf und Kinzig
A12: Trauungen | E12: Konzertdauer bis einschl. 90 Minuten + Einsingen/Einspielen | G12: B (Besitzstand gem. § 16 Abs. 1 Anlage 4f zur AVO) | I12: Appenweier-Durbach
A13: Seelenamt + Aussegnung bzw. Trauerfeier + Aussegnung | E13: Konzertdauer über 90 Minuten + Einsingen/Einspielen | G13: 90%B (Besitzstand nach § 16 Abs. 2 Anlage 4f zur AVO) | I13: Auf der Baar
A14: Andachten (bis einschl. 30min) | E14: Sonstige vereinbarte Tätigkeit gem. § 12 Abs. 3 Anlage 4f zur AVO | I14: Bad Dürrheim
A15: Andachten (bis einschl. 60min) | I15: Bad Krozingen-Hartheim
I16: Bad Rappenau/Obergimpern
I17: Bad Säckingen-Murg
I18: Bad Schönborn-Kronau
I19: Baden-Baden
I20: Baden-Baden-Oos
I21: Baden-Baden-Rebland
I22: Batzenberg-Obere Möhlin
I23: Beim Titisee
I24: Beuron
I25: Biet
I26: Billigheim-Neudenau-Schefflenz
I27: Birnau Mariä-Himmelfahrt
I28: Bisingen-Grosselfingen-Rangendingen
I29: Blumberg
I30: Bonndorf-Wutach
I31: Boxberg-Ahorn
I32: Bregtal
I33: Breisach-Merdingen
I34: Bretten-Walzbachtal
I35: Bruchsal Michaelsberg
I36: Bruchsal St. Vinzenz
I37: Brühl-Ketsch
I38: Buchen
I39: Bühl/Vimbuch
I40: Bühlertal
I41: Burladingen-Jungingen
I42: Deggenhausertal
I43: Deubach
I44: Donaueschingen
I45: Dreisamtal
I46: Durmersheim-Au a. Rh.
I47: Egg
I48: Eggingen-Stühlingen Hl. Kreuz
I49: Elztal-Limbach-Fahrenbach
I50: Emmendingen-Teningen
I51: Empfingen-Dießener Tal
I52: Eppingen
I53: Ettenheim
I54: Ettlingen Land
I55: Ettlingen Stadt
I56: Eutingen
I57: Eyachtal-Haigerloch St. Anna
I58: Forbach-Weisenbach
I59: Forst-Ubstadt-Weiher
I60: Freiburg Mitte
I61: Freiburg Nord
I62: Freiburg Nordwest
I63: Freiburg Ost
I64: Freiburg Südwest
I65: Freiburg-Tuniberg
I66: Freiburg-Wiehre-Günterstal
I67: Freudenberg
I68: Friedenweiler
I69: Friesenheim
I70: Gaggenau
I71: Gaggenau-Ottenau
I72: Gammertingen-Trochtelfingen
I73: Gernsbach
I74: Gottmadingen
I75: Graben-Neudorf-Linkenheim
I76: Grenzach-Wyhlen
I77: Großrinderfeld-Werbach
I78: Grünsfeld-Wittighausen
I79: Hanauerland
I80: Hardheim-Höpfingen Im Madonnenland
I81: Haslach
I82: Hausach-Hornberg
I83: Hechingen St. Luzius
I84: Heidelberg
I85: Heitersheim
I86: Hemsbach
I87: Herbolzheim-Rheinhausen
I88: Heuberg St. Barbara
I89: Hockenheim
I90: Hohenfels
I91: Hohenstoffeln-Hilzingen
I92: Höri
I93: Hotzenwald St. Wendelinus
I94: Iffezheim-Ried
I95: Immendingen-Möhringen St. Sebastian
I96: Jestetten
I97: Kämpfelbachtal
I98: Kandern-Istein
I99: Karlsdorf-Neuthard-Büchenau
I100: Karlsruhe Alb-Südwest St. Nikolaus
I101: Karlsruhe Allerheiligen
I102: Karlsruhe Nord-Ost St. Raphael
I103: Karlsruhe Südwest
I104: Karlsruhe-Durlach-Bergdörfer
I105: Karlsruhe-Hardt
I106: Kehl
I107: Kenzingen
I108: Kippenheim Maria Frieden
I109: Kirchtal-Donau
I110: Klettgau-Wutöschingen
I111: Kloster Wittichen
I112: Königheim
I113: Konstanz Altstadt
I114: Konstanz St. Georg-Maria Hilf
I115: Konstanzer Bodanrückgemeinden
I116: Konstanz-Petershausen
I117: Kraichtal-Elsenz Hl. Geist
I118: Krauchenwies-Rulfingen
I119: Krautheim-Ravenstein-Assamstadt
I120: Krebsbachtal/Hegau
I121: Külsheim-Bronnbach
I122: Küssaberg-Hohentengen St. Christophorus
I123: Ladenburg-Heddesheim
I124: Laiz-Leibertingen
I125: Lauda-Königshofen
I126: Laufenburg-Albbruck
I127: Lauf-Sasbachtal
I128: Leimen-Nußloch-Sandhausen
I129: Letzenberg
I130: Löffingen
I131: Lörrach-Inzlingen
I132: Malsch b. E.
I133: Mannheim Maria Magdalena
I134: Mannheim Nord
I135: Mannheim St. Johannes XXII
I136: Mannheim St. Martin
I137: Mannheim Süd
I138: Mannheim Südwest
I139: Mannheim-Neckarstadt
I140: March-Gottenheim
I141: Maria Bronnen
I142: Markdorf
I143: Markgräflerland
I144: Marxzell St. Markus
I145: Meersburg
I146: Meßkirch-Sauldorf
I147: Mittlerer Hegau
I148: Mittlerer Hochrhein St. Verena
I149: Mittleres Elz- und Simonswäldertal
I150: Mittleres Wiesental
I151: Mosbach-Elz-Neckar Mose
I152: Mudau
I153: Neckar-Elsenz
I154: Neckartal-Hoher Odenwald Edith Stein
I155: Nördlicher Kaiserstuhl
I156: Oberer Hegau
I157: Oberer Linzgau
I158: Oberes Elztal
I159: Oberes Renchtal
I160: Oberes Schlüchttal
I161: Oberes Wiesental
I162: Oberes Wolftal
I163: Oberhausen-Philippsburg
I164: Oberkirch
I165: Offenburg St. Ursula
I166: Östlicher Hochschwarzwald
I167: Ostrachtal
I168: Östringen
I169: Ottersweier Maria Linden
I170: Pfinztal
I171: Pforzheim
I172: Radolfzell St. Radolt
I173: Rastatt
I174: Reichenau
I175: Renchen
I176: Rheinfelden
I177: Rheinmünster-Lichtenau
I178: Rheinstetten
I179: Rust
I180: Salem-Heiligenberg
I181: Schliengen
I182: Schriesheim-Dossenheim
I183: Schutterwald-Hohberg-Neuried
I184: Schwetzingen
I185: See-End
I186: Sickingen
I187: Sigmaringen
I188: Singen
I189: Sinsheim-Angelbachtal
I190: Sinzheim-Hügelsheim
I191: Sipplingen
I192: St. Blasien
I193: St. Georgen-Hexental
I194: St. Georgen-Tennenbronn
I195: St. Märgen-St. Peter
I196: Staufen-St. Trudpert
I197: Steinachtal St. Hildegund
I198: Stockach
I199: Straßberg-Veringen
I200: Stutensee-Weingarten
... 27 more rows
